{"text_format":"1","workbook":"xlsx","n_sheets":3,"sheets":["ورقة1","ورقة2","ورقة3"],"not_rendered":{"charts":0,"images":1,"macros":1,"external_links":0,"defined_names":1,"comments":0,"pivot_tables":0},"unopened":[],"bounds":{"document_bytes":16777216,"sheet_cells":100000,"rows_first":2000,"rows_last":500,"rows_between":2000,"halvings":0,"cell_chars":16384,"cell_head_chars":4096},"cells_cut":0,"cells_raw":0,"read":"whole","date_system":"1900"}

{"sheet":"ورقة1","index":0,"n_rows":418,"n_cols":8,"rows_kept":418,"cut":false,"hidden":false,"merged":[[1,1,2,1],[0,1,0,4]]}
[null,"برنامج تسجيل الإشتراكات",null,null,null,"GOLD'S GYM"]
["ادخل التاريخ بالميلادى",null,"أدخل التاريخ بالأسفل","ستظهر النتيجة هنا بالأسفل",null,"تاريخ اليوم ( تلقائي )"]
[null,null,"2019-10-01",{"$f":"SUM(C3)","v":"2019-10-01"},null,{"$f":"TODAY()","v":"2019-10-01"}]
["رقم المشترك","إسم المشترك","لقب المشترك","تاريخ الانتهاء","الأيام المتبقية","حالة صلاحية الإثبات"]
[1,"محمد","ثامر","30-10-2019",{"$f":"+D5-$F$3","v":29},{"$f":"IFYes(E5<0,\"منتهية\",E5<=1,\"غداً ستننتهي - سارع بالتجديد\",E5<=2,\"بعد غداً ستننتهي - سارع بالتجديد\",E5<=3,\"بقي 3 أيام على الانتهاء - سارع بالتجديد\",E5<=4,\"بقي 4 أيام على الانتهاء - سارع بالتجديد\",E5<=5,\"بقي 5 أيام على الانتهاء - سارع بالتجديد\",E5<=6,\"بقي 6 أيام على الانتهاء - سارع بالتجديد\",E5<=7,\"بقي 7 أيام على الانتهاء - سارع بالتجديد\",E5<=8,\"سارع بالتجديد\",E5<=15,\"برجاء التجديد\",E5<30,\"بقي أقل من شهر على الإنتهاء\",E5=30,\"بقي شهر على الإنتهاء\",E5<1000,\" \")","v":"بقي أقل من شهر على الإنتهاء"},29]
[2,"نزار","رشيد","2019-10-29",28,"بقي أقل من شهر على الإنتهاء"]
[3,"محمد","أيوب","2019-10-31",30,"بقي شهر على الإنتهاء","31-10-2019",30]
[4,"محمود","حسنين","2019-11-01",31," "]
[5,"صابر","العلواني","2019-11-02",32," "]
[null,null,null,null,-43739,"منتهية"]
[null,null,null,null,-43739,"منتهية"]
[null,null,null,null,-43739,"منتهية"]
[null,null,null,null,-43739,"منتهية"]
[null,null,null,null,-43739,"منتهية"]
[null,null,null,null,-43739,"منتهية"]
[null,null,null,null,-43739,"منتهية"]
[null,null,null,null,-43739,"منتهية"]
[null,null,null,null,-43739,"منتهية"]
[null,null,null,null,-43739,"منتهية"]
[null,null,null,null,-43739,"منتهية"]
[null,null,null,null,-43739,"منتهية"]
[null,null,null,null,-43739,"منتهية"]
[null,null,null,null,-43739,"منتهية"]
[null,null,null,null,-43739,"منتهية"]
[null,null,null,null,-43739,"منتهية"]
[null,null,null,null,-43739,"منتهية"]
[null,null,null,null,-43739,"منتهية"]
[null,null,null,null,-43739,"منتهية"]
[null,null,null,null,-43739,"منتهية"]
[null,null,null,null,-43739,"منتهية"]
[null,null,null,null,-43739,"منتهية"]
[null,null,null,null,-43739,"منتهية"]
[null,null,null,null,-43739,"منتهية"]
[null,null,null,null,-43739,"منتهية"]
[null,null,null,null,-43739,"منتهية"]
[null,null,null,null,-43739,"منتهية"]
[null,null,null,null,-43739,"منتهية"]
[null,null,null,null,-43739,"منتهية"]
[null,null,null,null,-43739,"منتهية"]
[null,null,null,null,-43739,"منتهية"]
[null,null,null,null,-43739,"منتهية"]
[null,null,null,null,-43739,"منتهية"]
[null,null,null,null,-43739,"منتهية"]
[null,null,null,null,-43739,"منتهية"]
[null,null,null,null,-43739,"منتهية"]
[null,null,null,null,-43739,"منتهية"]
[null,null,null,null,-43739,"منتهية"]
[null,null,null,null,-43739,"منتهية"]
[null,null,null,null,-43739,"منتهية"]
[null,null,null,null,-43739,"منتهية"]
[null,null,null,null,-43739,"منتهية"]
[null,null,null,null,-43739,"منتهية"]
[null,null,null,null,-43739,"منتهية"]
[null,null,null,null,-43739,"منتهية"]
[null,null,null,null,-43739,"منتهية"]
[null,null,null,null,-43739,"منتهية"]
[null,null,null,null,-43739,"منتهية"]
[null,null,null,null,-43739,"منتهية"]
[null,null,null,null,-43739,"منتهية"]
[null,null,null,null,-43739,"منتهية"]
[null,null,null,null,-43739,"منتهية"]
[null,null,null,null,-43739,"منتهية"]
[null,null,null,null,-43739,"منتهية"]
[null,null,null,null,-43739,"منتهية"]
[null,null,null,null,-43739,"منتهية"]
[null,null,null,null,-43739,"منتهية"]
[null,null,null,null,-43739,"منتهية"]
[null,null,null,null,-43739,"منتهية"]
[null,null,null,null,{"$f":"+D69-$F$3","v":-43739},{"$f":"IFYes(E69<0,\"منتهية\",E69<=1,\"غداً ستننتهي - سارع بالتجديد\",E69<=2,\"بعد غداً ستننتهي - سارع بالتجديد\",E69<=3,\"بقي 3 أيام على الانتهاء - سارع بالتجديد\",E69<=4,\"بقي 4 أيام على الانتهاء - سارع بالتجديد\",E69<=5,\"بقي 5 أيام على الانتهاء - سارع بالتجديد\",E69<=6,\"بقي 6 أيام على الانتهاء - سارع بالتجديد\",E69<=7,\"بقي 7 أيام على الانتهاء - سارع بالتجديد\",E69<=8,\"سارع بالتجديد\",E69<=15,\"برجاء التجديد\",E69<30,\"بقي أقل من شهر على الإنتهاء\",E69=30,\"بقي شهر على الإنتهاء\",E69<1000,\" \")","v":"منتهية"}]
[null,null,null,null,-43739,"منتهية"]
[null,null,null,null,-43739,"منتهية"]
[null,null,null,null,-43739,"منتهية"]
[null,null,null,null,-43739,"منتهية"]
[null,null,null,null,-43739,"منتهية"]
[null,null,null,null,-43739,"منتهية"]
[null,null,null,null,-43739,"منتهية"]
[null,null,null,null,-43739,"منتهية"]
[null,null,null,null,-43739,"منتهية"]
[null,null,null,null,-43739,"منتهية"]
[null,null,null,null,-43739,"منتهية"]
[null,null,null,null,-43739,"منتهية"]
[null,null,null,null,-43739,"منتهية"]
[null,null,null,null,-43739,"منتهية"]
[null,null,null,null,-43739,"منتهية"]
[null,null,null,null,-43739,"منتهية"]
[null,null,null,null,-43739,"منتهية"]
[null,null,null,null,-43739,"منتهية"]
[null,null,null,null,-43739,"منتهية"]
[null,null,null,null,-43739,"منتهية"]
[null,null,null,null,-43739,"منتهية"]
[null,null,null,null,-43739,"منتهية"]
[null,null,null,null,-43739,"منتهية"]
[null,null,null,null,-43739,"منتهية"]
[null,null,null,null,-43739,"منتهية"]
[null,null,null,null,-43739,"منتهية"]
[null,null,null,null,-43739,"منتهية"]
[null,null,null,null,-43739,"منتهية"]
[null,null,null,null,-43739,"منتهية"]
[null,null,null,null,-43739,"منتهية"]
[null,null,null,null,-43739,"منتهية"]
[null,null,null,null,-43739,"منتهية"]
[null,null,null,null,-43739,"منتهية"]
[null,null,null,null,-43739,"منتهية"]
[null,null,null,null,-43739,"منتهية"]
[null,null,null,null,-43739,"منتهية"]
[null,null,null,null,-43739,"منتهية"]
[null,null,null,null,-43739,"منتهية"]
[null,null,null,null,-43739,"منتهية"]
[null,null,null,null,-43739,"منتهية"]
[null,null,null,null,-43739,"منتهية"]
[null,null,null,null,-43739,"منتهية"]
[null,null,null,null,-43739,"منتهية"]
[null,null,null,null,-43739,"منتهية"]
[null,null,null,null,-43739,"منتهية"]
[null,null,null,null,-43739,"منتهية"]
[null,null,null,null,-43739,"منتهية"]
[null,null,null,null,-43739,"منتهية"]
[null,null,null,null,-43739,"منتهية"]
[null,null,null,null,-43739,"منتهية"]
[null,null,null,null,-43739,"منتهية"]
[null,null,null,null,-43739,"منتهية"]
[null,null,null,null,-43739,"منتهية"]
[null,null,null,null,-43739,"منتهية"]
[null,null,null,null,-43739,"منتهية"]
[null,null,null,null,-43739,"منتهية"]
[null,null,null,null,-43739,"منتهية"]
[null,null,null,null,-43739,"منتهية"]
[null,null,null,null,-43739,"منتهية"]
[null,null,null,null,-43739,"منتهية"]
[null,null,null,null,-43739,"منتهية"]
[null,null,null,null,-43739,"منتهية"]
[null,null,null,null,-43739,"منتهية"]
[null,null,null,null,{"$f":"+D133-$F$3","v":-43739},{"$f":"IFYes(E133<0,\"منتهية\",E133<=1,\"غداً ستننتهي - سارع بالتجديد\",E133<=2,\"بعد غداً ستننتهي - سارع بالتجديد\",E133<=3,\"بقي 3 أيام على الانتهاء - سارع بالتجديد\",E133<=4,\"بقي 4 أيام على الانتهاء - سارع بالتجديد\",E133<=5,\"بقي 5 أيام على الانتهاء - سارع بالتجديد\",E133<=6,\"بقي 6 أيام على الانتهاء - سارع بالتجديد\",E133<=7,\"بقي 7 أيام على الانتهاء - سارع بالتجديد\",E133<=8,\"سارع بالتجديد\",E133<=15,\"برجاء التجديد\",E133<30,\"بقي أقل من شهر على الإنتهاء\",E133=30,\"بقي شهر على الإنتهاء\",E133<1000,\" \")","v":"منتهية"}]
[null,null,null,null,-43739,"منتهية"]
[null,null,null,null,-43739,"منتهية"]
[null,null,null,null,-43739,"منتهية"]
[null,null,null,null,-43739,"منتهية"]
[null,null,null,null,-43739,"منتهية"]
[null,null,null,null,-43739,"منتهية"]
[null,null,null,null,-43739,"منتهية"]
[null,null,null,null,-43739,"منتهية"]
[null,null,null,null,-43739,"منتهية"]
[null,null,null,null,-43739,"منتهية"]
[null,null,null,null,-43739,"منتهية"]
[null,null,null,null,-43739,"منتهية"]
[null,null,null,null,-43739,"منتهية"]
[null,null,null,null,-43739,"منتهية"]
[null,null,null,null,-43739,"منتهية"]
[null,null,null,null,-43739,"منتهية"]
[null,null,null,null,-43739,"منتهية"]
[null,null,null,null,-43739,"منتهية"]
[null,null,null,null,-43739,"منتهية"]
[null,null,null,null,-43739,"منتهية"]
[null,null,null,null,-43739,"منتهية"]
[null,null,null,null,-43739,"منتهية"]
[null,null,null,null,-43739,"منتهية"]
[null,null,null,null,-43739,"منتهية"]
[null,null,null,null,-43739,"منتهية"]
[null,null,null,null,-43739,"منتهية"]
[null,null,null,null,-43739,"منتهية"]
[null,null,null,null,-43739,"منتهية"]
[null,null,null,null,-43739,"منتهية"]
[null,null,null,null,-43739,"منتهية"]
[null,null,null,null,-43739,"منتهية"]
[null,null,null,null,-43739,"منتهية"]
[null,null,null,null,-43739,"منتهية"]
[null,null,null,null,-43739,"منتهية"]
[null,null,null,null,-43739,"منتهية"]
[null,null,null,null,-43739,"منتهية"]
[null,null,null,null,-43739,"منتهية"]
[null,null,null,null,-43739,"منتهية"]
[null,null,null,null,-43739,"منتهية"]
[null,null,null,null,-43739,"منتهية"]
[null,null,null,null,-43739,"منتهية"]
[null,null,null,null,-43739,"منتهية"]
[null,null,null,null,-43739,"منتهية"]
[null,null,null,null,-43739,"منتهية"]
[null,null,null,null,-43739,"منتهية"]
[null,null,null,null,-43739,"منتهية"]
[null,null,null,null,-43739,"منتهية"]
[null,null,null,null,-43739,"منتهية"]
[null,null,null,null,-43739,"منتهية"]
[null,null,null,null,-43739,"منتهية"]
[null,null,null,null,-43739,"منتهية"]
[null,null,null,null,-43739,"منتهية"]
[null,null,null,null,-43739,"منتهية"]
[null,null,null,null,-43739,"منتهية"]
[null,null,null,null,-43739,"منتهية"]
[null,null,null,null,-43739,"منتهية"]
[null,null,null,null,-43739,"منتهية"]
[null,null,null,null,-43739,"منتهية"]
[null,null,null,null,-43739,"منتهية"]
[null,null,null,null,-43739,"منتهية"]
[null,null,null,null,-43739,"منتهية"]
[null,null,null,null,-43739,"منتهية"]
[null,null,null,null,-43739,"منتهية"]
[null,null,null,null,{"$f":"+D197-$F$3","v":-43739},{"$f":"IFYes(E197<0,\"منتهية\",E197<=1,\"غداً ستننتهي - سارع بالتجديد\",E197<=2,\"بعد غداً ستننتهي - سارع بالتجديد\",E197<=3,\"بقي 3 أيام على الانتهاء - سارع بالتجديد\",E197<=4,\"بقي 4 أيام على الانتهاء - سارع بالتجديد\",E197<=5,\"بقي 5 أيام على الانتهاء - سارع بالتجديد\",E197<=6,\"بقي 6 أيام على الانتهاء - سارع بالتجديد\",E197<=7,\"بقي 7 أيام على الانتهاء - سارع بالتجديد\",E197<=8,\"سارع بالتجديد\",E197<=15,\"برجاء التجديد\",E197<30,\"بقي أقل من شهر على الإنتهاء\",E197=30,\"بقي شهر على الإنتهاء\",E197<1000,\" \")","v":"منتهية"}]
[null,null,null,null,-43739,"منتهية"]
[null,null,null,null,-43739,"منتهية"]
[null,null,null,null,-43739,"منتهية"]
[null,null,null,null,-43739,"منتهية"]
[null,null,null,null,-43739,"منتهية"]
[null,null,null,null,-43739,"منتهية"]
[null,null,null,null,-43739,"منتهية"]
[null,null,null,null,-43739,"منتهية"]
[null,null,null,null,-43739,"منتهية"]
[null,null,null,null,-43739,"منتهية"]
[null,null,null,null,-43739,"منتهية"]
[null,null,null,null,-43739,"منتهية"]
[null,null,null,null,-43739,"منتهية"]
[null,null,null,null,-43739,"منتهية"]
[null,null,null,null,-43739,"منتهية"]
[null,null,null,null,-43739,"منتهية"]
[null,null,null,null,-43739,"منتهية"]
[null,null,null,null,-43739,"منتهية"]
[null,null,null,null,-43739,"منتهية"]
[null,null,null,null,-43739,"منتهية"]
[null,null,null,null,-43739,"منتهية"]
[null,null,null,null,-43739,"منتهية"]
[null,null,null,null,-43739,"منتهية"]
[null,null,null,null,-43739,"منتهية"]
[null,null,null,null,-43739,"منتهية"]
[null,null,null,null,-43739,"منتهية"]
[null,null,null,null,-43739,"منتهية"]
[null,null,null,null,-43739,"منتهية"]
[null,null,null,null,-43739,"منتهية"]
[null,null,null,null,-43739,"منتهية"]
[null,null,null,null,-43739,"منتهية"]
[null,null,null,null,-43739,"منتهية"]
[null,null,null,null,-43739,"منتهية"]
[null,null,null,null,-43739,"منتهية"]
[null,null,null,null,-43739,"منتهية"]
[null,null,null,null,-43739,"منتهية"]
[null,null,null,null,-43739,"منتهية"]
[null,null,null,null,-43739,"منتهية"]
[null,null,null,null,-43739,"منتهية"]
[null,null,null,null,-43739,"منتهية"]
[null,null,null,null,-43739,"منتهية"]
[null,null,null,null,-43739,"منتهية"]
[null,null,null,null,-43739,"منتهية"]
[null,null,null,null,-43739,"منتهية"]
[null,null,null,null,-43739,"منتهية"]
[null,null,null,null,-43739,"منتهية"]
[null,null,null,null,-43739,"منتهية"]
[null,null,null,null,-43739,"منتهية"]
[null,null,null,null,-43739,"منتهية"]
[null,null,null,null,-43739,"منتهية"]
[null,null,null,null,-43739,"منتهية"]
[null,null,null,null,-43739,"منتهية"]
[null,null,null,null,-43739,"منتهية"]
[null,null,null,null,-43739,"منتهية"]
[null,null,null,null,-43739,"منتهية"]
[null,null,null,null,-43739,"منتهية"]
[null,null,null,null,-43739,"منتهية"]
[null,null,null,null,-43739,"منتهية"]
[null,null,null,null,-43739,"منتهية"]
[null,null,null,null,-43739,"منتهية"]
[null,null,null,null,-43739,"منتهية"]
[null,null,null,null,-43739,"منتهية"]
[null,null,null,null,-43739,"منتهية"]
[null,null,null,null,{"$f":"+D261-$F$3","v":-43739},{"$f":"IFYes(E261<0,\"منتهية\",E261<=1,\"غداً ستننتهي - سارع بالتجديد\",E261<=2,\"بعد غداً ستننتهي - سارع بالتجديد\",E261<=3,\"بقي 3 أيام على الانتهاء - سارع بالتجديد\",E261<=4,\"بقي 4 أيام على الانتهاء - سارع بالتجديد\",E261<=5,\"بقي 5 أيام على الانتهاء - سارع بالتجديد\",E261<=6,\"بقي 6 أيام على الانتهاء - سارع بالتجديد\",E261<=7,\"بقي 7 أيام على الانتهاء - سارع بالتجديد\",E261<=8,\"سارع بالتجديد\",E261<=15,\"برجاء التجديد\",E261<30,\"بقي أقل من شهر على الإنتهاء\",E261=30,\"بقي شهر على الإنتهاء\",E261<1000,\" \")","v":"منتهية"}]
[null,null,null,null,-43739,"منتهية"]
[null,null,null,null,-43739,"منتهية"]
[null,null,null,null,-43739,"منتهية"]
[null,null,null,null,-43739,"منتهية"]
[null,null,null,null,-43739,"منتهية"]
[null,null,null,null,-43739,"منتهية"]
[null,null,null,null,-43739,"منتهية"]
[null,null,null,null,-43739,"منتهية"]
[null,null,null,null,-43739,"منتهية"]
[null,null,null,null,-43739,"منتهية"]
[null,null,null,null,-43739,"منتهية"]
[null,null,null,null,-43739,"منتهية"]
[null,null,null,null,-43739,"منتهية"]
[null,null,null,null,-43739,"منتهية"]
[null,null,null,null,-43739,"منتهية"]
[null,null,null,null,-43739,"منتهية"]
[null,null,null,null,-43739,"منتهية"]
[null,null,null,null,-43739,"منتهية"]
[null,null,null,null,-43739,"منتهية"]
[null,null,null,null,-43739,"منتهية"]
[null,null,null,null,-43739,"منتهية"]
[null,null,null,null,-43739,"منتهية"]
[null,null,null,null,-43739,"منتهية"]
[null,null,null,null,-43739,"منتهية"]
[null,null,null,null,-43739,"منتهية"]
[null,null,null,null,-43739,"منتهية"]
[null,null,null,null,-43739,"منتهية"]
[null,null,null,null,-43739,"منتهية"]
[null,null,null,null,-43739,"منتهية"]
[null,null,null,null,-43739,"منتهية"]
[null,null,null,null,-43739,"منتهية"]
[null,null,null,null,-43739,"منتهية"]
[null,null,null,null,-43739,"منتهية"]
[null,null,null,null,-43739,"منتهية"]
[null,null,null,null,-43739,"منتهية"]
[null,null,null,null,-43739,"منتهية"]
[null,null,null,null,-43739,"منتهية"]
[null,null,null,null,-43739,"منتهية"]
[null,null,null,null,-43739,"منتهية"]
[null,null,null,null,-43739,"منتهية"]
[null,null,null,null,-43739,"منتهية"]
[null,null,null,null,-43739,"منتهية"]
[null,null,null,null,-43739,"منتهية"]
[null,null,null,null,-43739,"منتهية"]
[null,null,null,null,-43739,"منتهية"]
[null,null,null,null,-43739,"منتهية"]
[null,null,null,null,-43739,"منتهية"]
[null,null,null,null,-43739,"منتهية"]
[null,null,null,null,-43739,"منتهية"]
[null,null,null,null,-43739,"منتهية"]
[null,null,null,null,-43739,"منتهية"]
[null,null,null,null,-43739,"منتهية"]
[null,null,null,null,-43739,"منتهية"]
[null,null,null,null,-43739,"منتهية"]
[null,null,null,null,-43739,"منتهية"]
[null,null,null,null,-43739,"منتهية"]
[null,null,null,null,-43739,"منتهية"]
[null,null,null,null,-43739,"منتهية"]
[null,null,null,null,-43739,"منتهية"]
[null,null,null,null,-43739,"منتهية"]
[null,null,null,null,-43739,"منتهية"]
[null,null,null,null,-43739,"منتهية"]
[null,null,null,null,-43739,"منتهية"]
[null,null,null,null,{"$f":"+D325-$F$3","v":-43739},{"$f":"IFYes(E325<0,\"منتهية\",E325<=1,\"غداً ستننتهي - سارع بالتجديد\",E325<=2,\"بعد غداً ستننتهي - سارع بالتجديد\",E325<=3,\"بقي 3 أيام على الانتهاء - سارع بالتجديد\",E325<=4,\"بقي 4 أيام على الانتهاء - سارع بالتجديد\",E325<=5,\"بقي 5 أيام على الانتهاء - سارع بالتجديد\",E325<=6,\"بقي 6 أيام على الانتهاء - سارع بالتجديد\",E325<=7,\"بقي 7 أيام على الانتهاء - سارع بالتجديد\",E325<=8,\"سارع بالتجديد\",E325<=15,\"برجاء التجديد\",E325<30,\"بقي أقل من شهر على الإنتهاء\",E325=30,\"بقي شهر على الإنتهاء\",E325<1000,\" \")","v":"منتهية"}]
[null,null,null,null,-43739,"منتهية"]
[null,null,null,null,-43739,"منتهية"]
[null,null,null,null,-43739,"منتهية"]
[null,null,null,null,-43739,"منتهية"]
[null,null,null,null,-43739,"منتهية"]
[null,null,null,null,-43739,"منتهية"]
[null,null,null,null,-43739,"منتهية"]
[null,null,null,null,-43739,"منتهية"]
[null,null,null,null,-43739,"منتهية"]
[null,null,null,null,-43739,"منتهية"]
[null,null,null,null,-43739,"منتهية"]
[null,null,null,null,-43739,"منتهية"]
[null,null,null,null,-43739,"منتهية"]
[null,null,null,null,-43739,"منتهية"]
[null,null,null,null,-43739,"منتهية"]
[null,null,null,null,-43739,"منتهية"]
[null,null,null,null,-43739,"منتهية"]
[null,null,null,null,-43739,"منتهية"]
[null,null,null,null,-43739,"منتهية"]
[null,null,null,null,-43739,"منتهية"]
[null,null,null,null,-43739,"منتهية"]
[null,null,null,null,-43739,"منتهية"]
[null,null,null,null,-43739,"منتهية"]
[null,null,null,null,-43739,"منتهية"]
[null,null,null,null,-43739,"منتهية"]
[null,null,null,null,-43739,"منتهية"]
[null,null,null,null,-43739,"منتهية"]
[null,null,null,null,-43739,"منتهية"]
[null,null,null,null,-43739,"منتهية"]
[null,null,null,null,-43739,"منتهية"]
[null,null,null,null,-43739,"منتهية"]
[null,null,null,null,-43739,"منتهية"]
[null,null,null,null,-43739,"منتهية"]
[null,null,null,null,-43739,"منتهية"]
[null,null,null,null,-43739,"منتهية"]
[null,null,null,null,-43739,"منتهية"]
[null,null,null,null,-43739,"منتهية"]
[null,null,null,null,-43739,"منتهية"]
[null,null,null,null,-43739,"منتهية"]
[null,null,null,null,-43739,"منتهية"]
[null,null,null,null,-43739,"منتهية"]
[null,null,null,null,-43739,"منتهية"]
[null,null,null,null,-43739,"منتهية"]
[null,null,null,null,-43739,"منتهية"]
[null,null,null,null,-43739,"منتهية"]
[null,null,null,null,-43739,"منتهية"]
[null,null,null,null,-43739,"منتهية"]
[null,null,null,null,-43739,"منتهية"]
[null,null,null,null,-43739,"منتهية"]
[null,null,null,null,-43739,"منتهية"]
[null,null,null,null,-43739,"منتهية"]
[null,null,null,null,-43739,"منتهية"]
[null,null,null,null,-43739,"منتهية"]
[null,null,null,null,-43739,"منتهية"]
[null,null,null,null,-43739,"منتهية"]
[null,null,null,null,-43739,"منتهية"]
[null,null,null,null,-43739,"منتهية"]
[null,null,null,null,-43739,"منتهية"]
[null,null,null,null,-43739,"منتهية"]
[null,null,null,null,-43739,"منتهية"]
[null,null,null,null,-43739,"منتهية"]
[null,null,null,null,-43739,"منتهية"]
[null,null,null,null,-43739,"منتهية"]
[null,null,null,null,{"$f":"+D389-$F$3","v":-43739},{"$f":"IFYes(E389<0,\"منتهية\",E389<=1,\"غداً ستننتهي - سارع بالتجديد\",E389<=2,\"بعد غداً ستننتهي - سارع بالتجديد\",E389<=3,\"بقي 3 أيام على الانتهاء - سارع بالتجديد\",E389<=4,\"بقي 4 أيام على الانتهاء - سارع بالتجديد\",E389<=5,\"بقي 5 أيام على الانتهاء - سارع بالتجديد\",E389<=6,\"بقي 6 أيام على الانتهاء - سارع بالتجديد\",E389<=7,\"بقي 7 أيام على الانتهاء - سارع بالتجديد\",E389<=8,\"سارع بالتجديد\",E389<=15,\"برجاء التجديد\",E389<30,\"بقي أقل من شهر على الإنتهاء\",E389=30,\"بقي شهر على الإنتهاء\",E389<1000,\" \")","v":"منتهية"}]
[null,null,null,null,-43739,"منتهية"]
[null,null,null,null,-43739,"منتهية"]
[null,null,null,null,-43739,"منتهية"]
[null,null,null,null,-43739,"منتهية"]
[null,null,null,null,-43739,"منتهية"]
[null,null,null,null,-43739,"منتهية"]
[null,null,null,null,-43739,"منتهية"]
[null,null,null,null,-43739,"منتهية"]
[null,null,null,null,-43739,"منتهية"]
[null,null,null,null,-43739,"منتهية"]
[null,null,null,null,-43739,"منتهية"]
[null,null,null,null,-43739,"منتهية"]
[null,null,null,null,-43739,"منتهية"]
[null,null,null,null,-43739,"منتهية"]
[null,null,null,null,-43739,"منتهية"]
[null,null,null,null,-43739,"منتهية"]
[null,null,null,null,-43739,"منتهية"]
[null,null,null,null,-43739,"منتهية"]
[null,null,null,null,-43739,"منتهية"]
[null,null,null,null,-43739,"منتهية"]
[null,null,null,null,-43739,"منتهية"]
[null,null,null,null,-43739,"منتهية"]
[null,null,null,null,-43739,"منتهية"]
[null,null,null,null,-43739,"منتهية"]
[null,null,null,null,-43739,"منتهية"]
[null,null,null,null,-43739,"منتهية"]
[null,null,null,null,-43739,"منتهية"]
[null,null,null,null,-43739,"منتهية"]
[null,null,null,null,-43739,"منتهية"]

{"sheet":"ورقة2","index":1,"n_rows":0,"n_cols":0,"rows_kept":0,"cut":false,"hidden":false,"merged":[]}

{"sheet":"ورقة3","index":2,"n_rows":0,"n_cols":0,"rows_kept":0,"cut":false,"hidden":false,"merged":[]}